bitfinex-derivatives/quotes_ETHF0:USTF0_20241231
["timestamp","ask_amount","ask_price","bid_price","bid_amount"]
[1735666696587,7.60891511,3348.4,3347.7,0.29918]
[1735666696790,3.2078,3348.5,3348.0,0.29915]
[1735666697089,0.29912,3348.4,3347.8,0.29917]
[1735666697294,3.2078,3348.5,3348.1,0.29914]
[1735666697493,0.29912,3348.4,3348.0,3.2078]
[1735666697692,0.29913,3348.3,3348.0,3.2078]
[1735666697996,0.29913,3348.3,3347.7,0.29918]
[1735666698290,3.2078,3348.5,3348.2,0.29913]
[1735666698595,3.2078,3348.5,3348.1,0.29914]
[1735666698895,3.2078,3348.5,3348.0,3.2078]
[1735666699091,3.2078,3348.5,3348.1,3.15923439]
[1735666699291,3.2078,3349.7,3348.4,3.2078]
[1735666699502,0.299,3349.8,3349.0,3.50686]
[1735666699692,0.299,3349.8,3349.2,3.2078]
[1735666699888,3.2078,3350.2,3349.6,3.2078]
[1735666700094,2.1675,3350.8,3350.0,3.2078]
[1735666700484,3.2078,3350.2,3349.1,3.2078]
[1735666700687,3.2078,3350.1,3349.4,3.2078]
[1735666700987,0.29898,3350.0,3349.4,3.2078]
[1735666701296,0.29898,3350.0,3349.4,5.1568]
[1735666701597,0.29894,3350.4,3349.8,3.2078]
[1735666701784,0.29891,3350.7,3349.9,0.29898]
[1735666702187,0.29891,3350.7,3350.0,0.29897]
[1735666702394,1.0561,3350.8,3350.2,3.2078]
[1735666702694,3.2078,3351.1,3350.5,0.29892]
[1735666702998,0.59921955,3351.1,3350.7,3.2078]
[1735666703186,3.2078,3351.5,3350.3,3.2078]
[1735666703391,0.29894,3350.4,3350.3,3.2078]
[1735666703595,0.29901,3349.6,3349.0,3.2078]
[1735666703897,0.29902,3349.5,3349.0,3.2078]
[1735666704092,3.2078,3349.4,3348.6,3.2078]
[1735666704287,3.2078,3349.4,3348.4,3.2078]
[1735666704487,0.29912,3348.4,3347.8,5.45597]
[1735666704688,3.2078,3349.0,3347.8,5.1568]
[1735666704888,0.29913,3348.3,3347.8,3.2078]
[1735666705094,3.2078,3349.1,3347.8,3.2078]
[1735666705095,0.2991,3348.7,3347.9,0.29916]
[1735666705404,0.2991,3348.7,3348.0,0.29915]
[1735666705405,0.01051829,3348.3,3348.0,0.29915]
[1735666705600,3.2078,3349.1,3348.2,3.2078]
[1735666705900,0.29905,3349.2,3348.6,3.2078]
[1735666706199,0.29905,3349.2,3348.6,5.1558]
[1735666706401,0.29904,3349.3,3348.6,5.45489]
[1735666706602,3.2078,3349.6,3348.6,5.1558]
[1735666706799,0.29906,3349.1,3348.6,5.1558]
[1735666707596,0.29905,3349.2,3348.6,3.2078]
[1735666707797,0.29906,3349.1,3348.6,3.2078]
[1735666708304,3.2078,3348.7,3348.2,3.2078]
[1735666708596,3.2078,3348.3,3347.4,3.2078]
[1735666708801,0.74778,3348.5,3346.8,9.425]
[1735666708802,3.2078,3347.5,3346.8,9.425]
[1735666709199,5.6162055,3348.4,3347.4,3.2078]
[1735666709399,4.2651,3348.9,3347.4,3.2078]
[1735666709698,7.59146024,3348.8,3347.8,3.2078]
[1735666709896,3.2078,3349.3,3348.2,3.2078]
[1735666710104,3.2078,3349.3,3347.8,1.948]
[1735666710105,3.2078,3349.3,3348.9,0.29907]
[1735666710301,0.29905,3349.2,3348.5,3.2078]
[1735666710597,3.2078,3348.9,3348.1,3.2078]
[1735666711104,0.29907,3349.0,3348.4,0.29912]
[1735666711601,0.29908,3348.9,3348.3,0.29913]
[1735666711798,0.29909,3348.8,3348.2,0.29914]
[1735666711998,0.29908,3348.9,3348.3,0.29912]
[1735666712395,10.51089796,3349.3,3348.1,3.2078]
[1735666712602,0.29909,3348.8,3348.2,0.29914]
[1735666712900,0.29909,3348.8,3348.1,3.2078]
[1735666712901,15.51089796,3349.3,3348.1,3.50694]
[1735666713103,0.29905,3349.2,3348.2,0.29913]
[1735666713305,0.29908,3348.8,3348.2,0.29913]
[1735666713508,0.29908,3348.8,3348.1,3.2078]
[1735666713509,7.35381437,3349.1,3348.1,3.2078]
[1735666713803,3.2078,3349.3,3348.6,3.2078]
[1735666714004,3.2078,3349.3,3347.6,1.948]
[1735666714005,0.29909,3348.8,3348.2,3.50693]
[1735666714603,0.29906,3349.1,3348.4,0.29911]
[1735666714906,0.29907,3349.0,3348.2,3.2078]
[1735666715103,3.2078,3349.3,3348.6,3.2078]
[1735666715400,0.29907,3349.0,3348.4,0.29911]
[1735666715601,3.50686,3349.1,3348.2,3.2078]
[1735666715903,3.2078,3349.1,3348.2,3.2078]
[1735666716397,0.29909,3348.8,3348.2,3.50693]
[1735666717002,0.29907,3349.0,3348.2,3.2078]
[1735666717409,3.2078,3349.1,3348.5,0.29911]
[1735666717611,0.29907,3349.0,3348.5,0.29911]
[1735666717797,3.50686,3349.1,3348.2,3.2078]
[1735666718106,0.29907,3349.0,3348.2,3.2078]
[1735666718311,0.29907,3349.0,3348.5,0.29911]
[1735666718504,3.2078,3349.1,3348.2,3.2078]
[1735666718698,0.29913,3348.4,3347.8,0.29917]
[1735666718900,3.2078,3348.3,3347.2,3.2078]
[1735666719098,3.2078,3348.3,3346.2,1.948]
[1735666719099,3.2078,3347.5,3346.2,3.2078]
[1735666719302,0.29928,3346.6,3346.2,3.2078]
[1735666719503,3.2078,3347.0,3346.2,3.2078]
[1735666719504,3.2078,3347.0,3346.2,3.50711]
[1735666719804,0.29927,3346.8,3346.2,3.2078]
[1735666720106,0.29926,3346.8,3346.3,0.2993]
[1735666720407,3.2078,3347.0,3346.2,3.2078]
[1735666720604,0.29928,3346.7,3346.2,3.50712]
[1735666720804,7.63800111,3346.9,3345.8,3.2078]
[1735666721407,0.74817,3346.8,3345.8,3.2078]
[1735666721605,7.63800111,3346.9,3345.8,3.2078]
[1735666721805,0.29929,3346.5,3346.0,0.29933]
[1735666722013,3.2078,3346.1,3345.0,3.2078]
[1735666722207,3.2078,3345.7,3344.6,3.2078]
[1735666722604,0.29942,3345.1,3344.6,3.2078]
[1735666722901,0.29944,3344.8,3344.2,0.29845149]
[1735666723106,3.2078,3344.9,3343.6,3.2078]
[1735666723306,3.2078,3344.9,3343.6,3.50735]
[1735666723307,0.29945,3344.8,3343.6,3.50735]
[1735666723510,7.37983478,3344.8,3343.6,3.2078]
[1735666723706,7.37983478,3344.8,3343.7,0.29954]
[1735666724012,0.29945,3344.8,3344.1,3.2078]
[1735666724210,5.0,3344.8,3344.1,3.2078]
[1735666724416,0.29955,3343.7,3343.5,3.50292303]
[1735666724708,3.2078,3344.2,3342.4,3.15923439]
[1735666724914,0.29958,3343.4,3342.6,3.50744]
[1735666725214,3.2078,3343.8,3342.6,3.2078]
[1735666725409,0.29956,3343.5,3342.7,0.29963]
[1735666725909,0.29947,3344.6,3343.8,0.29953]
[1735666726211,3.2078,3345.3,3344.4,3.2078]
[1735666726404,0.29941,3345.2,3344.4,3.50728]
[1735666726627,7.51842105,3345.2,3344.5,0.29947]
[1735666727011,7.51842105,3345.2,3344.4,3.50727]
[1735666727312,0.29944,3344.9,3344.4,3.2078]
[1735666727511,0.29944,3344.9,3344.1,0.2995]
[1735666727512,0.29944,3344.9,3344.1,3.2078]
[1735666727703,7.60894582,3344.8,3344.7,0.29945]
[1735666728009,1.027,3345.4,3344.2,3.2078]
[1735666728010,4.2348,3345.4,3344.2,3.2078]
[1735666728207,1.027,3345.4,3344.6,3.2078]
[1735666728406,3.2078,3345.3,3344.6,3.2078]
[1735666728609,3.2078,3345.3,3344.6,3.50726]
[1735666728812,3.2078,3345.3,3344.6,3.2078]
[1735666729710,3.2078,3345.3,3344.8,3.2078]
[1735666730612,1.0511,3346.0,3344.8,3.2078]
[1735666730613,3.2078,3345.8,3344.8,3.2078]
[1735666730814,3.2078,3345.8,3344.9,0.29944]
[1735666731019,3.2078,3345.8,3344.5,3.15923439]
[1735666731020,3.2078,3345.8,3345.3,3.2078]
[1735666731216,7.33893263,3345.7,3344.9,3.2078]
[1735666731417,0.29937,3345.7,3345.0,0.29942]
[1735666731718,3.2078,3345.8,3344.9,3.2078]
[1735666731916,3.2078,3345.8,3344.9,3.50723]
[1735666731917,0.29938,3345.6,3344.9,3.50723]
[1735666732115,7.51686388,3345.7,3344.9,3.2078]
[1735666732417,7.81624388,3345.5,3344.9,3.2078]
[1735666732611,7.55186729,3345.7,3344.9,3.2078]
[1735666732811,3.2078,3345.8,3345.0,3.15923439]
[1735666733314,3.2078,3345.8,3344.9,3.2078]
[1735666733516,3.2078,3346.3,3345.7,0.29936]
[1735666733712,3.2078,3346.3,3345.8,0.29935]
[1735666733912,0.975,3346.5,3345.5,3.2078]
[1735666734219,0.29935,3345.9,3345.4,3.2078]
[1735666734412,0.29934,3346.1,3345.4,3.2078]
[1735666734613,0.29932,3346.3,3345.9,3.2078]
[1735666734807,7.65132947,3346.2,3345.9,3.2078]
[1735666735016,7.65132947,3346.2,3345.5,3.2078]
[1735666735225,0.29932,3346.2,3345.5,3.2078]
[1735666735411,0.9747,3347.1,3345.9,3.2078]
[1735666735621,1.27395,3347.1,3346.5,0.29929]
[1735666735817,1.27395,3347.1,3346.3,3.5071]
[1735666735818,0.29925,3347.0,3346.3,3.5071]
[1735666736011,0.9747,3347.1,3346.3,3.2078]
[1735666736218,3.2078,3347.2,3346.3,3.2078]
[1735666736519,0.29918,3347.8,3347.2,0.29922]
[1735666736819,0.29918,3347.8,3347.4,3.2078]
[1735666737217,4.2017,3348.1,3347.4,3.2078]
[1735666737525,3.2078,3347.9,3346.7,3.2078]
[1735666737715,3.2078,3347.5,3346.7,3.2078]
[1735666737917,7.58164009,3347.8,3346.7,3.2078]
[1735666738121,3.2078,3348.3,3347.5,3.2078]
[1735666738315,0.29917,3348.0,3347.6,3.2078]
[1735666738522,7.58164009,3348.2,3347.6,3.2078]
[1735666738921,0.29919,3347.7,3347.1,6.66626439]
[1735666739220,1.04732,3347.2,3346.0,3.2078]
[1735666739423,0.29926,3346.9,3346.3,0.2993]
[1735666739622,7.45232221,3347.1,3346.0,3.2078]
[1735666739818,3.2078,3346.3,3345.6,6.36703439]
[1735666740020,3.2078,3346.3,3345.6,3.2078]
[1735666740725,3.50711,3346.3,3345.7,0.29936]
[1735666740921,3.2078,3346.3,3345.6,3.2078]
[1735666741422,0.29936,3345.7,3345.6,3.2078]
[1735666741623,0.29936,3345.7,3343.1,7.48]
[1735666741624,0.74844,3345.6,3343.9,3.15923439]
[1735666741820,3.2078,3344.8,3343.7,3.2078]
[1735666742021,3.95643,3344.8,3343.7,3.2078]
[1735666742217,3.2078,3344.4,3343.6,3.2078]
[1735666742418,3.2078,3344.0,3343.2,3.2078]
[1735666742621,3.2078,3344.0,3342.8,3.2078]
[1735666742818,7.58164535,3343.9,3343.0,0.2996]
[1735666743122,7.58164535,3343.9,3342.8,3.2078]
[1735666743424,3.2078,3343.6,3342.8,3.2078]
[1735666743623,3.2078,3343.2,3341.4,6.36703439]
[1735666743813,3.2078,3342.4,3341.4,3.2078]
[1735666744017,3.2078,3342.0,3340.9,3.15923439]
[1735666744224,3.5075,3342.0,3341.2,3.2078]
[1735666744419,3.2078,3342.0,3341.2,3.2078]
[1735666744820,0.29974,3341.5,3341.2,3.2078]
[1735666745049,1.889,3342.7,3340.8,3.2078]
[1735666745050,3.2078,3341.6,3340.8,3.2078]
[1735666745529,3.2078,3341.6,3341.0,0.29978]
[1735666746220,3.50754,3341.6,3340.8,0.2998]
[1735666746418,3.2078,3341.6,3340.7,0.29981]
[1735666746623,0.29975,3341.4,3340.5,3.50762]
[1735666746815,0.29977,3341.2,3340.5,3.2078]
[1735666747021,3.2078,3341.6,3340.9,6.36703439]
[1735666747221,3.2078,3342.1,3341.4,3.15923439]
[1735666747419,3.2078,3343.1,3342.5,0.29965]
[1735666747622,3.2078,3343.1,3342.4,3.2078]
[1735666748231,3.2078,3342.7,3341.6,3.2078]
[1735666748524,3.2078,3341.9,3341.1,3.2078]
[1735666748725,3.2078,3341.9,3340.9,3.15923439]
[1735666748726,3.2078,3341.9,3340.9,3.2078]
[1735666749022,0.29972,3341.7,3340.9,3.50759]
[1735666749227,3.2078,3341.9,3340.9,3.2078]
[1735666749527,3.2078,3341.3,3340.6,0.29981]
[1735666749824,3.2078,3341.3,3340.5,3.2078]
[1735666750027,0.2998,3340.9,3340.5,3.2078]
[1735666750325,3.2078,3340.9,3340.1,0.29986]
[1735666750529,3.2078,3340.9,3339.8,3.2078]
[1735666750724,3.2078,3340.5,3339.8,3.2078]
[1735666751227,3.2078,3340.1,3339.4,3.2078]
[1735666751435,3.50767,3340.1,3339.1,0.29995]
[1735666751630,3.2078,3340.1,3339.0,3.2078]
[1735666751922,0.29988,3340.0,3339.1,0.29995]
[1735666752124,0.29995,3339.2,3338.1,0.30004]
[1735666752331,3.15923439,3339.3,3337.6,3.2078]
[1735666752332,3.2078,3338.7,3337.6,3.2078]
[1735666752629,3.2078,3339.0,3338.0,3.2078]
[1735666752826,3.2078,3339.0,3338.4,3.2078]
[1735666753029,3.2078,3339.5,3338.4,3.2078]
[1735666753334,3.2078,3339.5,3338.2,4.34452502]
[1735666753526,3.2078,3339.5,3338.3,3.2078]
[1735666753829,3.2078,3339.5,3338.7,3.2078]
[1735666754326,3.2078,3339.5,3338.7,9.2211]
[1735666754630,3.2078,3339.5,3339.0,0.29996]
[1735666754832,3.2078,3339.5,3338.8,0.29998]
[1735666755032,3.2078,3339.5,3338.7,9.2211]
[1735666755331,3.2078,3339.5,3338.7,4.2211]
[1735666755728,3.2078,3339.5,3338.8,0.29997]
[1735666755927,3.2078,3340.0,3339.2,3.2078]
[1735666756431,3.2078,3340.0,3339.3,0.29993]
[1735666756626,3.2078,3340.0,3339.2,3.2078]
[1735666757027,3.2078,3340.0,3339.6,0.2999]
[1735666757229,3.2078,3340.0,3339.2,3.2078]
[1735666757425,3.2078,3340.0,3339.7,0.29989]
[1735666757625,3.2078,3340.0,3339.2,3.2078]
[1735666758022,3.2078,3340.0,3339.7,0.29989]
[1735666758438,3.2078,3340.0,3339.9,0.29988]
[1735666758626,3.2078,3341.3,3339.8,3.15923439]
[1735666758928,3.2078,3341.4,3340.8,0.2998]
[1735666759136,3.2078,3341.4,3340.6,0.29982]
[1735666759333,3.2078,3341.4,3340.9,3.2078]
[1735666759640,3.2078,3341.0,3340.3,3.2078]
[1735666759830,7.31816033,3341.3,3339.2,3.2078]
[1735666759831,3.2078,3340.6,3339.2,3.2078]
[1735666760037,3.2078,3340.6,3338.2,1.13672502]
[1735666760038,3.5077,3339.7,3338.8,3.2078]
[1735666760224,3.2078,3339.7,3338.4,0.995]
[1735666760430,3.2078,3339.3,3338.2,1.13672502]
[1735666760636,6.36703439,3338.3,3336.5,3.2078]
[1735666760842,3.2078,3337.6,3336.9,0.30015]
[1735666761133,3.2078,3338.1,3337.4,3.2078]
[1735666761339,3.2078,3338.2,3337.0,0.30014]
[1735666761531,3.2078,3337.1,3335.9,3.2078]
[1735666761730,3.2078,3336.6,3335.5,3.2078]
[1735666761935,3.2078,3336.6,3335.1,3.2078]
[1735666762236,3.2078,3335.5,3334.4,6.95339218]
[1735666762436,6.36703439,3334.5,3334.4,6.95339218]
[1735666762637,0.30038,3334.3,3333.2,3.2078]
[1735666762839,3.2078,3334.6,3334.1,3.2078]
[1735666763140,3.2078,3334.6,3333.7,3.2078]
[1735666763441,3.2078,3334.0,3333.3,3.2078]
[1735666763637,3.2078,3334.4,3333.3,8.2078]
[1735666763848,0.30031,3335.2,3333.8,0.30043]
[1735666764138,0.30031,3335.2,3334.1,3.2078]
[1735666764435,3.2078,3335.3,3334.1,3.2078]
[1735666764640,0.30035,3334.8,3333.6,3.2078]
[1735666764839,7.43646832,3335.1,3333.3,0.30047]
[1735666764840,7.43646832,3335.1,3334.6,3.2078]
[1735666765033,3.2078,3335.9,3335.0,3.2078]
[1735666765238,3.2078,3336.6,3335.6,0.30026]
[1735666765438,0.3002,3336.4,3335.0,5.1628]
[1735666765639,3.2078,3336.0,3335.0,3.2078]
[1735666765836,0.30025,3335.9,3334.6,0.30035]
[1735666766044,3.2078,3336.0,3335.0,0.30032]
[1735666766344,3.2078,3335.9,3335.0,3.2078]
[1735666766639,3.2078,3335.1,3333.3,3.2078]
[1735666766845,3.2078,3334.0,3333.3,3.2078]
[1735666767039,3.2078,3334.1,3333.3,3.2078]
[1735666768038,3.2078,3334.1,3333.3,3.50827]
[1735666768242,3.2078,3334.1,3333.3,3.2078]
[1735666768545,3.2078,3334.5,3333.8,0.30043]
[1735666768742,3.2078,3334.5,3333.7,3.50824]
[1735666768944,3.2078,3333.8,3332.4,3.2078]
[1735666769240,3.2078,3334.2,3332.8,3.2078]
[1735666769433,3.2078,3334.2,3333.7,0.30044]
[1735666769636,3.2078,3334.2,3333.2,3.50828]
[1735666769938,3.2078,3334.2,3333.2,3.2078]
[1735666770235,3.2078,3334.2,3333.2,8.2078]
[1735666770545,3.2078,3335.3,3334.1,3.2078]
[1735666770841,3.2078,3334.9,3333.7,3.2078]
[1735666771044,3.2078,3333.8,3333.0,3.2078]
[1735666771243,3.2078,3334.7,3333.3,3.2078]
[1735666771437,3.2078,3334.7,3333.7,3.2078]
[1735666771636,2.9316111,3334.6,3334.5,6.36703439]
[1735666771840,3.2078,3336.1,3334.5,8.38603439]
[1735666772047,3.2078,3336.1,3335.3,3.2078]
[1735666772442,3.2078,3336.1,3335.5,3.2078]
[1735666772949,8.2078,3336.1,3335.2,3.2078]
[1735666773147,3.2078,3335.6,3334.4,3.2078]
[1735666773348,3.2078,3335.2,3334.4,3.2078]
[1735666774035,3.2078,3335.6,3334.8,3.2078]
[1735666774647,3.2078,3335.4,3334.4,3.2078]
[1735666774842,1.0363,3336.0,3335.3,3.2078]
[1735666775042,3.2078,3335.7,3334.6,3.2078]
[1735666775239,3.2078,3335.3,3334.6,3.2078]
[1735666775543,7.48718398,3335.6,3334.6,3.2078]
[1735666775742,3.2078,3335.9,3334.6,3.2078]
[1735666775947,10.83475585,3335.5,3334.6,3.2078]
[1735666776247,3.2078,3334.7,3333.7,3.2078]
[1735666776448,3.2078,3334.3,3333.7,3.2078]
[1735666776647,3.2078,3334.3,3333.4,3.2078]
[1735666776851,3.2078,3333.8,3333.0,3.2078]
[1735666778246,3.2078,3333.8,3332.5,2.02]
[1735666778247,3.2078,3333.8,3332.6,3.2078]
[1735666778445,3.2078,3333.8,3333.0,3.2078]
[1735666779245,3.2078,3333.8,3332.2,1.0565]
[1735666779246,3.2078,3333.3,3332.2,3.2078]
[1735666779944,6.36703439,3333.9,3332.2,3.2078]
[1735666780144,11.36703439,3333.9,3332.6,3.2078]
[1735666780346,3.2078,3333.6,3332.6,3.2078]
[1735666780546,3.2078,3333.1,3332.1,3.2078]
[1735666781248,3.2078,3332.9,3332.1,3.2078]
[1735666781549,1.0256,3333.3,3332.6,3.2078]
[1735666781550,8.37043786,3333.3,3332.6,3.2078]
[1735666781947,3.2078,3333.4,3332.6,8.2078]
[1735666782145,3.2078,3334.0,3333.3,3.2078]
[1735666783844,10.7894489,3333.9,3333.3,3.2078]
[1735666784050,10.7894489,3333.9,3332.7,3.2078]
[1735666784253,15.7894489,3333.9,3332.7,3.2078]
[1735666784751,3.2078,3333.6,3332.3,3.2078]
[1735666785055,3.15923439,3333.4,3332.3,3.2078]
[1735666785456,3.2078,3332.7,3332.0,0.0024057]
[1735666786051,3.2078,3333.1,3332.3,3.2078]
[1735666786453,3.2078,3333.1,3332.0,0.0024057]
[1735666786961,3.2078,3332.7,3332.0,0.0024057]
[1735666787456,3.2078,3333.2,3332.5,3.2078]
[1735666787651,3.2078,3333.2,3332.0,0.0024057]
[1735666787852,8.2078,3333.2,3332.0,0.0024057]
[1735666788052,3.2078,3333.2,3332.2,3.2078]
[1735666788652,3.2078,3333.2,3332.0,0.0024057]
[1735666788958,8.2078,3333.2,3332.0,0.0024057]
[1735666789258,8.2078,3333.2,3332.2,3.2078]
[1735666789454,3.2078,3333.2,3332.2,3.2078]
[1735666789759,3.2078,3333.2,3332.6,3.2078]
[1735666789960,4.1861,3333.7,3332.6,3.2078]
[1735666790253,2.021,3334.3,3332.6,3.2078]
[1735666790254,3.2078,3334.1,3333.3,3.2078]
[1735666790656,3.2078,3334.5,3333.7,3.2078]
[1735666790847,3.2078,3335.1,3334.3,3.2078]
[1735666791161,3.2078,3335.1,3334.4,3.2078]
[1735666791456,3.2078,3335.5,3334.8,3.2078]
[1735666791652,3.2078,3336.1,3334.3,3.2078]
[1735666791855,3.2078,3336.1,3334.1,2.022]
[1735666791856,3.2078,3336.1,3335.5,3.2078]
[1735666792261,3.2078,3336.6,3335.9,3.2078]
[1735666792558,3.2078,3338.1,3336.5,3.2078]
[1735666792755,3.2078,3338.5,3337.4,3.2078]
[1735666793055,7.54757105,3339.1,3338.4,3.2078]
[1735666793352,1.0647,3339.6,3338.4,3.2078]
[1735666793561,1.0647,3339.6,3339.0,3.2078]
[1735666793752,3.2078,3339.9,3339.0,3.2078]
[1735666793953,3.2078,3339.7,3338.6,3.2078]
[1735666794151,3.2078,3339.7,3339.2,3.2078]
[1735666794461,3.2078,3340.2,3338.6,3.2078]
[1735666794653,3.2078,3339.0,3337.7,2.021]
[1735666794961,3.2078,3339.0,3338.3,3.2078]
[1735666795148,3.2078,3338.6,3337.4,3.2078]
[1735666795455,3.2078,3338.2,3337.4,3.2078]
[1735666795660,3.2078,3338.2,3337.4,8.2078]
[1735666795958,3.2078,3339.4,3337.6,3.2078]
[1735666796158,3.2078,3339.4,3338.1,3.2078]
[1735666796461,3.2078,3339.4,3338.5,3.2078]
[1735666796761,3.2078,3339.4,3337.9,3.2078]
[1735666797054,3.2078,3339.4,3338.5,3.2078]
[1735666797254,3.2078,3339.4,3338.9,3.2078]
[1735666797456,3.48391497,3339.4,3338.9,3.2078]
[1735666797659,0.27611497,3339.4,3338.9,3.2078]
[1735666797848,3.2078,3340.2,3339.3,3.2078]
[1735666798053,3.2078,3340.4,3338.9,3.2078]
[1735666798359,3.2078,3340.0,3339.3,3.2078]
[1735666798657,3.2078,3340.2,3339.3,3.2078]
[1735666798852,3.2078,3339.4,3338.2,3.2078]
[1735666799059,3.2078,3339.0,3338.2,3.2078]
[1735666799561,3.2078,3339.4,3338.6,3.2078]
[1735666799759,3.2078,3339.4,3338.8,3.2078]
[1735666800257,3.2078,3339.4,3338.0,3.2078]
[1735666800458,3.2078,3339.4,3338.8,3.2078]
[1735666800652,3.2078,3339.4,3338.4,3.2078]
[1735666800957,3.2078,3339.4,3337.8,2.082]
[1735666800958,3.2078,3339.4,3338.8,3.2078]
[1735666801158,3.2078,3339.0,3338.3,3.2078]
[1735666801357,3.15923439,3338.5,3336.7,3.2078]
[1735666801557,3.2078,3337.5,3336.5,3.2078]
[1735666801757,3.2078,3337.1,3335.7,2.082]
[1735666801960,3.2078,3337.1,3336.6,3.2078]
[1735666802163,3.2078,3337.8,3336.6,3.2078]
[1735666802361,3.2078,3337.4,3336.1,3.2078]
[1735666802662,3.2078,3337.0,3335.9,3.2078]
[1735666802861,3.2078,3337.0,3335.9,8.2078]
[1735666803162,3.2078,3337.0,3335.8,1.0628]
[1735666803163,3.2078,3336.6,3335.8,1.0628]
[1735666803365,3.2078,3336.2,3334.8,3.2078]
[1735666803660,3.2078,3335.9,3334.8,3.2078]
[1735666803963,3.2078,3335.9,3334.8,5.0]
[1735666804162,3.2078,3336.4,3335.3,3.2078]
[1735666804361,3.2078,3336.0,3334.9,3.2078]
[1735666804561,3.2078,3336.4,3335.5,3.2078]
[1735666804758,3.2078,3337.0,3336.2,3.2078]
[1735666804957,7.38964595,3337.8,3336.6,3.2078]
[1735666805162,2.20586987,3338.8,3337.3,3.2078]
[1735666805163,5.41366987,3338.8,3337.3,3.2078]
[1735666805367,3.2078,3338.4,3337.4,2.082]
[1735666805567,5.41366987,3338.8,3337.7,3.2078]
[1735666805764,2.20586987,3338.8,3338.4,3.2078]
[1735666805957,2.20586987,3338.8,3337.7,3.2078]
[1735666805958,5.41366987,3338.8,3337.7,3.2078]
[1735666806159,3.2078,3338.4,3337.3,3.2078]
[1735666806471,3.2078,3338.4,3336.9,3.15923439]
[1735666806472,3.2078,3337.5,3335.8,6.3368]
[1735666806661,3.2078,3337.5,3335.7,1.0343]
[1735666806662,3.2078,3336.2,3335.0,3.2078]
[1735666806855,2.082,3337.4,3334.5,3.2078]
[1735666806856,3.2078,3335.9,3334.5,3.2078]
[1735666807166,3.2078,3335.9,3335.0,3.2078]
[1735666807462,3.2078,3335.1,3334.6,3.2078]
[1735666807655,3.2078,3335.5,3334.6,3.2078]
[1735666808863,3.2078,3335.1,3333.6,2.082]
[1735666809363,3.2078,3335.1,3333.3,3.2078]
[1735666809364,3.2078,3334.3,3333.3,3.2078]
[1735666809964,3.2078,3334.8,3333.3,8.2078]
[1735666810166,3.2078,3334.8,3334.0,3.2078]
[1735666810365,3.2078,3335.2,3334.4,3.2078]
[1735666811063,3.2078,3335.2,3333.2,1.047]
[1735666811064,3.2078,3334.8,3333.7,3.2078]
[1735666811268,3.2078,3334.8,3331.3,7.957]
[1735666811269,3.2078,3334.1,3332.9,3.2078]
[1735666811563,3.2078,3334.0,3332.3,3.2078]
[1735666811771,3.2078,3334.0,3333.0,3.2078]
[1735666812062,0.9823,3336.4,3333.0,8.2078]
[1735666812063,3.2078,3334.4,3333.0,8.2078]
[1735666812262,4.903277,3335.3,3333.6,3.2078]
[1735666812461,6.0591,3336.0,3334.3,3.2078]
[1735666812462,3.2078,3335.2,3334.3,3.2078]
[1735666812665,3.2078,3335.7,3334.8,3.2078]
[1735666812865,3.18816987,3336.4,3335.3,3.2078]
[1735666812866,3.2078,3336.2,3335.3,3.2078]
[1735666813063,3.18816987,3336.4,3336.0,3.2078]
[1735666813064,2.20586987,3336.4,3336.0,3.2078]
[1735666813368,2.20586987,3336.4,3336.3,3.2078]
[1735666813569,2.20586987,3336.4,3335.8,2.083]
[1735666814071,3.2078,3336.8,3335.9,3.2078]
[1735666814861,3.2078,3336.8,3336.0,2.083]
[1735666815163,3.2078,3338.4,3336.7,3.2078]
[1735666815373,3.2078,3338.4,3337.4,3.2078]
[1735666815671,3.2078,3337.6,3336.2,3.2078]
[1735666815962,3.2078,3336.9,3336.2,3.2078]
[1735666816563,3.2078,3336.9,3335.8,3.2078]
[1735666817068,3.2078,3337.7,3336.8,3.2078]
[1735666817263,3.2078,3338.2,3337.4,3.2078]
[1735666817464,3.2078,3337.8,3337.0,3.2078]
[1735666817971,3.2078,3337.8,3336.3,3.2078]
[1735666817972,3.2078,3337.4,3336.3,3.2078]
[1735666818271,3.2078,3337.4,3335.9,3.2078]
[1735666818479,3.2078,3337.4,3336.8,3.2078]
[1735666818673,3.2078,3337.8,3337.0,3.2078]
[1735666819373,1.1435,3338.0,3337.4,3.2078]
[1735666819972,3.2078,3337.8,3337.0,3.2078]
[1735666820174,3.2078,3337.4,3335.9,3.2078]
[1735666820467,3.2078,3337.4,3336.6,3.2078]
[1735666821373,3.2078,3337.4,3336.2,3.2078]
[1735666821681,3.2078,3337.4,3336.1,3.2078]
[1735666821872,3.2078,3337.0,3336.1,3.2078]
[1735666822268,3.2078,3336.5,3335.2,3.2078]
[1735666822471,5.0,3337.0,3334.7,3.2078]
[1735666822472,3.2078,3335.7,3334.7,3.2078]
[1735666822672,3.2078,3335.3,3334.7,3.2078]
[1735666822972,4.903277,3335.9,3334.1,3.2078]
[1735666822973,3.2078,3335.5,3334.1,3.2078]
[1735666823168,3.2078,3335.5,3334.5,3.2078]
[1735666823476,1.1923,3336.4,3335.4,3.2078]
[1735666823477,3.2078,3336.3,3335.4,3.2078]
[1735666823972,3.2078,3335.5,3334.9,2.082]
[1735666824172,3.2078,3336.2,3334.9,2.082]
[1735666824585,3.2078,3336.2,3334.2,1.1017]
[1735666824586,8.2078,3336.2,3335.2,3.2078]
[1735666824775,8.2078,3336.2,3334.9,3.2078]
[1735666824776,3.2078,3336.2,3334.9,3.2078]